lending/lending_fUSD_20241005
["ID","MTS","AMOUNT","RATE_DAILY","PERIOD"]
[339902254,1728147125120,-500.0,0.0004041,30]
[339902255,1728147125130,-857.16,0.0004041,30]
[339902256,1728147125139,-500.0,0.0004041,30]
[339902257,1728147125149,-550.13350341,0.0004041,30]
[339902258,1728147125159,-500.0,0.0004041,30]
[339902259,1728147125168,-443.431309,0.0004041,14]
[339902260,1728147125177,-500.0,0.0004041,30]
[339902261,1728147125187,-1257.63,0.0004041,30]
[339902262,1728147125196,-287.09968699,0.0004041,30]
[339902263,1728147125206,-500.0,0.0004041,30]
[339902264,1728147125215,-347.49737457,0.0004041,30]
[339902265,1728147125225,-500.0,0.0004041,30]
[339902266,1728147125235,-500.0,0.0004041,30]
[339902267,1728147125245,-730.24,0.0004041,30]
[339902268,1728147125257,-1523.37,0.0004041,30]
[339902269,1728147125266,-500.0,0.0004041,30]
[339902270,1728147125276,-443.431308,0.0004041,14]
[339902271,1728147125285,-847.59,0.0004041,30]
[339902272,1728147125296,-500.0,0.0004041,30]
[339902273,1728147125305,-500.0,0.0004041,30]
[339902274,1728147125314,-500.0,0.0004041,30]
[339902275,1728147125324,-500.0,0.0004041,30]
[339902276,1728147125333,-500.0,0.0004041,30]
[339902277,1728147125343,-573.3836011,0.0004041,30]
[339902278,1728147125354,-708.16,0.0004041,30]
[339902279,1728147125363,-500.0,0.0004041,30]
[339902280,1728147125373,-500.0,0.0004041,30]
[339902281,1728147125383,-500.0,0.0004041,30]
[339902282,1728147125394,-500.0,0.0004041,30]
[339902283,1728147125404,-1110.69,0.0004041,30]
[339902284,1728147125414,-734.55,0.0004041,30]
[339902285,1728147125423,-500.0,0.0004041,21]
[339902286,1728147125433,-500.0,0.0004041,30]
[339902287,1728147125444,-500.0,0.0004041,30]
[339902288,1728147125454,-500.0,0.0004041,30]
[339902289,1728147125464,-500.0,0.0004041,30]
[339902290,1728147125473,-1207.12,0.0004041,30]
[339902291,1728147125483,-500.0,0.0004041,30]
[339902292,1728147125492,-621.54,0.0004041,30]
[339902293,1728147125505,-1418.21,0.0004041,30]
[339902294,1728147125514,-500.0,0.0004041,30]
[339902295,1728147125523,-500.0,0.0004041,30]
[339902296,1728147125533,-1713.6,0.0004041,30]
[339902297,1728147125543,-596.62,0.0004041,30]
[339902298,1728147125554,-500.0,0.0004041,120]
[339902299,1728147125563,-500.0,0.0004041,30]
[339902300,1728147125573,-1763.97,0.0004041,30]
[339902301,1728147125582,-500.0,0.0004041,30]
[339902302,1728147125592,-500.0,0.0004041,30]
[339902303,1728147125602,-500.0,0.0004041,30]
[339902304,1728147125612,-520.32,0.0004041,30]
[339902305,1728147125623,-500.0,0.0004041,30]
[339902306,1728147125634,-500.0,0.0004041,30]
[339902307,1728147125643,-500.0,0.0004041,30]
[339902308,1728147125653,-1374.93,0.0004041,30]
[339902309,1728147125663,-500.0,0.0004041,30]
[339902310,1728147125672,-814.88,0.0004041,30]
[339902311,1728147125682,-828.2,0.0004041,30]
[339902312,1728147125691,-502.3139858,0.0004041,30]
[339902313,1728147125700,-500.0,0.0004041,30]
[339902314,1728147125711,-1238.46,0.0004041,30]
[339902315,1728147125722,-500.0,0.0004041,30]
[339902316,1728147125732,-500.0,0.0004041,30]
[339902317,1728147125743,-500.0,0.0004041,30]
[339902318,1728147125755,-904.62,0.0004041,30]
[339902319,1728147125764,-500.0,0.0004041,30]
[339902320,1728147125774,-203.65852913,0.0004041,30]
[339902321,1728147125783,-629.14,0.0004041,30]
[339902322,1728147125793,-1342.248124,0.0004041,14]
[339902323,1728147125803,-1015.81,0.0004041,30]
[339902324,1728147125812,-500.0,0.0004041,30]
[339902325,1728147125821,-934.77,0.0004041,30]
[339902326,1728147125830,-500.0,0.0004041,7]
[339902327,1728147125840,-500.0,0.0004041,30]
[339902328,1728147125850,-513.80856412,0.0004041,30]
[339902329,1728147125859,-1120.82,0.0004041,30]
[339902330,1728147125869,-790.26,0.0004041,30]
[339902331,1728147125878,-803.58,0.0004041,30]
[339902332,1728147125888,-500.0,0.0004041,30]
[339902333,1728147125897,-500.0,0.0004041,30]
[339902334,1728147125907,-1342.248126,0.0004041,14]
[339902335,1728147125916,-617.73,0.0004041,30]
[339902336,1728147125925,-500.0,0.0004041,30]
[339902337,1728147125934,-500.0,0.0004041,30]
[339902338,1728147125943,-500.0,0.0004041,30]
[339902339,1728147125953,-500.0,0.0004041,30]
[339902340,1728147125962,-816.66,0.0004041,30]
[339902341,1728147125971,-500.0,0.0004041,2]
[339902342,1728147125981,-1440.54,0.0004041,30]
[339902343,1728147125990,-1168.27,0.0004041,30]
[339902344,1728147126001,-530.55375115,0.0004041,30]
[339902345,1728147126010,-684.57,0.0004041,30]
[339902346,1728147126019,-500.0,0.0004041,30]
[339902347,1728147126028,-500.0,0.0004041,30]
[339902348,1728147126037,-500.0,0.0004041,30]
[339902349,1728147126047,-1163.33,0.0004041,30]
[339902350,1728147126056,-886.94,0.0004041,30]
[339902351,1728147126066,-790.06,0.0004041,30]
[339902352,1728147126076,-500.0,0.0004041,30]
[339902353,1728147126085,-500.0,0.0004041,30]
[339902354,1728147126095,-1783.85,0.0004041,30]
[339902355,1728147126105,-233.100519,0.00040498,116]
[339902356,1728147126114,-443.48370958,0.00040546,120]
[339902357,1728147126124,-1404.31028826,0.00040546,120]
[339902358,1728147126133,-999.0,0.00040547,120]
[339902359,1728147126143,-1126.93053,0.00040608,30]
[339902360,1728147126153,-398.42,0.00040631,2]
[339902361,1728147126162,-171.66,0.00040639,120]
[339902362,1728147126171,-366.70002304,0.00040681,7]
[339902363,1728147126181,-1017.92002971,0.00040681,7]
[339902364,1728147126191,-663.97478816,0.00040721,2]
[339902365,1728147126200,-331.100519,0.00040798,119]
[339902366,1728147126210,-152.0,0.00040804,8]
[339902367,1728147126220,-1126.93053,0.00040808,30]
[339902368,1728147126229,-668.66,0.00040821,30]
[339902369,1728147126239,-1684.72,0.00040821,30]
[339902370,1728147126247,-500.0,0.00040821,30]
[339902371,1728147126259,-500.0,0.00040821,30]
[339902372,1728147126268,-500.0,0.00040821,30]
[339902373,1728147126277,-500.0,0.00040821,30]
[339902374,1728147126287,-500.0,0.00040821,30]
[339902375,1728147126297,-500.0,0.00040821,30]
[339902376,1728147126307,-500.0,0.00040821,30]
[339902377,1728147126316,-500.0,0.00040821,30]
[339902378,1728147126326,-500.0,0.00040821,30]
[339902379,1728147126335,-500.0,0.00040821,30]
[339902380,1728147126347,-500.0,0.00040821,30]
[339902381,1728147126357,-500.0,0.00040821,30]
[339902382,1728147126366,-498.24744491,0.00040821,30]
[339902383,1728147126376,-643.68268456,0.00040821,30]
[339902384,1728147126385,-501.46464024,0.00040821,30]
[339902385,1728147126395,-500.0,0.00040821,30]
[339902386,1728147126404,-498.26094126,0.00040821,30]
[339902387,1728147126414,-500.0,0.00040821,30]
[339902388,1728147126423,-500.0,0.00040821,30]
[339902389,1728147126434,-500.0,0.00040821,30]
[339902390,1728147126443,-150.0,0.00040821,30]
[339902391,1728147126452,-500.0,0.00040821,30]
[339902392,1728147126461,-1155.52,0.00040821,30]
[339902393,1728147126471,-1004.11,0.00040821,30]
[339902394,1728147126481,-869.62,0.00040821,30]
[339902395,1728147126490,-500.0,0.00040821,30]
[339902396,1728147126502,-500.0,0.00040821,30]
[339902397,1728147126512,-577.41,0.00040821,30]
[339902398,1728147126521,-1420.73,0.00040821,30]
[339902399,1728147126530,-500.0,0.00040821,30]
[339902400,1728147126540,-547.3,0.00040821,30]
[339902401,1728147126549,-500.0,0.00040821,30]
[339902402,1728147126559,-548.25,0.00040821,30]
[339902403,1728147126568,-500.0,0.00040821,30]
[339902404,1728147126578,-500.0,0.00040821,30]
[339902405,1728147126588,-500.0,0.00040821,30]
[339902406,1728147126597,-634.58,0.00040821,30]
[339902407,1728147126607,-500.0,0.00040821,30]
[339902408,1728147126616,-593.12,0.00040821,30]
[339902409,1728147126626,-500.0,0.00040821,30]
[339902410,1728147126636,-522.2596476,0.00040821,30]
[339902411,1728147127180,-7.2503524,0.00040821,30]
[339902412,1728147127190,-501.64290393,0.00040821,30]
[339902413,1728147127200,-1227.07,0.00040821,30]
[339902414,1728147127209,-647.22359848,0.00040821,30]
[339902415,1728147127218,-518.44,0.00040821,30]
[339902416,1728147127227,-500.0,0.00040821,30]
[339902417,1728147127237,-907.64,0.00040821,30]
[339902418,1728147127246,-500.0,0.00040821,30]
[339902419,1728147127262,-477.57244337,0.00040821,30]
[339902420,1728147127271,-500.0,0.00040821,30]
[339902421,1728147127281,-500.0,0.00040821,30]
[339902422,1728147127291,-500.0,0.00040821,30]
[339902423,1728147127300,-500.0,0.00040821,30]
[339902424,1728147127310,-500.0,0.00040821,30]
[339902425,1728147127320,-500.0,0.00040821,30]
[339902426,1728147127329,-500.0,0.00040821,30]
[339902427,1728147127338,-500.0,0.00040821,30]
[339902428,1728147127352,-597.48,0.00040821,30]
[339902429,1728147127361,-398.29224625,0.00040821,30]
[339902430,1728147127374,-107.34411473,0.00040821,30]
[339902431,1728147127384,-500.0,0.00040821,30]
[339902432,1728147127394,-505.11315217,0.00040821,30]
[339902433,1728147127403,-500.0,0.00040821,30]
[339902434,1728147127412,-780.76,0.00040821,30]
[339902435,1728147127421,-500.0,0.00040821,30]
[339902436,1728147127430,-500.0,0.00040821,30]
[339902437,1728147127440,-1092.02,0.00040821,30]
[339902438,1728147127449,-1147.66,0.00040821,30]
[339902439,1728147127458,-500.0,0.00040821,7]
[339902440,1728147127467,-494.92644714,0.00040821,30]
[339902441,1728147127477,-500.0,0.00040821,30]
[339902442,1728147127486,-500.0,0.00040821,30]
[339902443,1728147127495,-500.0,0.00040821,30]
[339902444,1728147127511,-156.36525271,0.00040821,30]
[339902445,1728147127524,-343.63474729,0.00040821,30]
[339902446,1728147127533,-287.30872698,0.00040821,2]
[339902447,1728147127544,-213.52986734,0.00040821,2]
[339902448,1728147127553,-267.74873372,0.00040821,30]
[339902449,1728147127564,-232.25126628,0.00040821,30]
[339902450,1728147127574,-332.41086572,0.00040821,30]
[339902451,1728147127585,-167.58913428,0.00040821,30]
[339902452,1728147127594,-316.68521172,0.00040821,30]
[339902453,1728147127606,-183.31478828,0.00040821,30]
[339902454,1728147127615,-605.99,0.00040821,30]
[339902455,1728147127625,-260.4152117,0.00040821,30]
[339902456,1728147127636,-289.72485261,0.00040821,30]
[339902457,1728147127645,-500.0,0.00040821,30]
[339902458,1728147127655,-500.0,0.00040821,30]
[339902459,1728147127665,-389.17369778,0.00040821,30]
[339902460,1728147127676,-110.82630222,0.00040821,30]
[339902461,1728147127685,-959.8,0.00040821,30]
[339902462,1728147127695,-597.47,0.00040821,30]
[339902463,1728147127705,-500.0,0.00040821,30]
[339902464,1728147127715,-500.0,0.00040821,30]
[339902465,1728147127724,-500.0,0.00040821,30]
[339902466,1728147127734,-44.75713907,0.00040821,30]
[339902467,1728147127761,-151.99,0.00039,2]
[339902468,1728147127771,-413.03912286,0.00040821,30]
[339902469,1728147127783,-42.20373807,0.00040821,30]
[339902470,1728147127792,-200.0,0.00040821,7]
[339902471,1728147127801,-24.99980774,0.00040821,30]
[339902472,1728147127813,-481.0264231,0.00040821,30]
[339902473,1728147127823,-500.0,0.00040821,30]
[339902474,1728147127832,-500.0,0.00040821,30]
[339902475,1728147127842,-500.0,0.00040821,30]
[339902476,1728147127852,-500.0,0.00040821,30]
[339902477,1728147127862,-500.0,0.00040821,30]
[339902478,1728147127872,-1254.87,0.00040821,30]
[339902479,1728147127882,-502.05493887,0.00040821,30]
[339902480,1728147127891,-500.0,0.00040821,30]
[339902481,1728147127901,-500.0,0.00040821,30]
[339902482,1728147127911,-500.0,0.00040821,30]
[339902483,1728147127921,-1340.11,0.00040821,30]
[339902484,1728147127930,-18.67544245,0.00040821,30]
[339902485,1728147127942,-481.32455755,0.00040821,30]
[339902486,1728147127951,-500.0,0.00040821,30]
[339902487,1728147127961,-1185.33,0.00040821,30]
[339902488,1728147127970,-500.0,0.00040821,30]
[339902489,1728147127979,-500.0,0.00040821,30]
[339902490,1728147127989,-659.90802846,0.00040821,30]
[339902491,1728147128000,-400.51197154,0.00040821,30]
[339902492,1728147128012,-500.0,0.00040821,30]
[339902493,1728147128021,-1130.0,0.00040821,30]
[339902494,1728147128031,-952.13,0.00040821,30]
[339902495,1728147128040,-500.0,0.00040821,30]
[339902496,1728147128049,-865.66,0.00040821,30]
[339902497,1728147128059,-996.76,0.00040821,30]
[339902498,1728147128068,-503.54582,0.00040821,30]
[339902499,1728147128077,-152.73493605,0.00040821,30]
[339902500,1728147128089,-975.94506395,0.00040821,30]
[339902501,1728147128099,-585.41,0.00040821,30]
[339902502,1728147128108,-1208.3,0.00040821,30]
[339902503,1728147128118,-999.01,0.00040821,30]
[339902504,1728147128127,-500.0,0.00040821,30]
[339902505,1728147128136,-509.93203994,0.00040821,30]
[339902506,1728147128145,-500.0,0.00040821,30]
[339902507,1728147128155,-500.0,0.00040821,30]
[339902508,1728147128164,-508.91,0.00040821,30]
[339902509,1728147128173,-500.0,0.00040821,30]
[339902510,1728147128182,-868.76,0.00040821,30]
[339902511,1728147128192,-1096.8,0.00040821,30]
[339902512,1728147128201,-500.0,0.00040821,30]
[339902513,1728147128210,-613.51,0.00040821,30]
[339902514,1728147128220,-930.7,0.00040821,30]
[339902515,1728147128231,-500.0,0.00040821,30]
[339902516,1728147128240,-1127.46975425,0.00040821,30]
[339902517,1728147128254,-145.27024575,0.00040821,30]
[339902518,1728147128263,-184.26445455,0.00040821,30]
[339902519,1728147128275,-462.38554545,0.00040821,30]
[339902520,1728147128284,-504.49,0.00040821,30]
[339902521,1728147128296,-142.89057708,0.00040821,30]
[339902522,1728147128319,-502.0,0.00040821,30]
[339902523,1728147128329,-292.81942292,0.00040821,30]
[339902524,1728147128338,-845.63,0.00040821,30]
[339902525,1728147128349,-357.13903521,0.00040821,30]
[339902526,1728147128380,-151.99,0.00039,2]
[339902527,1728147128390,-500.0,0.0004,30]
[339902528,1728147128399,-1108.4,0.0004041,30]
[339902529,1728147128409,-142.86096479,0.00040821,30]
[339902530,1728147128418,-1381.8,0.00040821,30]
[339902531,1728147128427,-500.0,0.00040821,30]
[339902532,1728147128436,-505.30031655,0.00040821,30]
[339902533,1728147128445,-500.0,0.00040821,30]
[339902534,1728147128454,-500.0,0.00040821,30]
[339902535,1728147128463,-500.0,0.00040821,30]
[339902536,1728147128473,-500.0,0.00040821,30]
[339902537,1728147128482,-741.0,0.00040821,30]
[339902538,1728147128491,-500.0,0.00040821,30]
[339902539,1728147128500,-244.19659253,0.00040821,30]
[339902540,1728147128513,-738.04340747,0.00040821,30]
[339902541,1728147128523,-500.0,0.00040821,30]
[339902542,1728147128531,-357.43970135,0.00040821,30]
[339902543,1728147128542,-748.18029865,0.00040821,30]
[339902544,1728147128551,-500.0,0.00040821,30]
[339902545,1728147128562,-500.0,0.00040821,30]
[339902546,1728147128571,-500.0,0.00040821,30]
[339902547,1728147128580,-500.0,0.00040821,30]
[339902548,1728147128589,-877.47,0.00040821,30]
[339902549,1728147128599,-500.0,0.00040821,30]
[339902550,1728147128608,-500.0,0.00040821,30]
[339902551,1728147128618,-500.0,0.00040821,30]
[339902552,1728147128627,-151.0,0.00040821,14]
[339902553,1728147128637,-994.36,0.00040821,30]
[339902554,1728147128646,-500.0,0.00040821,30]
[339902555,1728147128656,-1035.51,0.00040821,30]
[339902556,1728147128665,-500.0,0.00040821,30]
[339902557,1728147128674,-500.0,0.00040821,30]
[339902558,1728147128683,-989.87,0.00040821,30]
[339902559,1728147128692,-500.0,0.00040821,30]
[339902560,1728147128701,-500.0,0.00040821,30]
[339902561,1728147128711,-871.55,0.00040821,30]
[339902562,1728147128720,-528.77,0.00040821,30]
[339902563,1728147128729,-1333.03,0.00040821,30]
[339902564,1728147128738,-925.19,0.00040821,30]
[339902565,1728147128748,-500.0,0.00040821,30]
[339902566,1728147128761,-24.57582999,0.00040821,30]
[339902567,1728147128773,-475.42417001,0.00040821,30]
[339902568,1728147128782,-1502.02,0.00040821,30]
[339902569,1728147128791,-889.77,0.00040821,30]
[339902570,1728147128801,-485.34582999,0.00040821,30]
[339902571,1728147128812,-114.89417001,0.00040821,30]
[339902572,1728147128822,-175.41084499,0.00040821,30]
[339902573,1728147129194,-642.89,0.00038767,30]
[339902574,1728147129204,-151.99,0.00039,2]
[339902575,1728147129213,-151.99,0.00039,2]
[339902576,1728147129222,-151.99,0.00039,2]
[339902577,1728147129232,-151.99,0.00039,2]
[339902578,1728147129241,-151.99,0.00039,2]
[339902579,1728147129254,-642.89,0.00039178,30]
[339902580,1728147129264,-642.89,0.00039589,30]
[339902581,1728147129273,-642.89,0.0004,30]
[339902582,1728147129282,-500.0,0.0004041,30]
[339902583,1728147129292,-542.12915501,0.00040821,30]
[339902584,1728147129301,-963.18,0.00040821,30]
[339902585,1728147129310,-500.0,0.00040821,5]
[339902586,1728147129319,-416.88796547,0.00040821,30]
[339902587,1728147129331,-134.81203453,0.00040821,30]
[339902588,1728147129341,-1188.91398489,0.00040821,30]
[339902589,1728147129369,-57.96601511,0.00040821,30]
[339902590,1728147129378,-275.72433178,0.00040821,30]
[339902591,1728147129389,-308.44566822,0.00040821,30]
[339902592,1728147129399,-382.82416556,0.00040821,30]
[339902593,1728147129429,-150.0,0.00036687,2]
[339902594,1728147129439,-150.0,0.00036837,2]
[339902595,1728147129448,-642.89,0.0004041,30]
[339902596,1728147129457,-135.89583444,0.00040821,30]
[339902597,1728147129467,-400.96584953,0.00040821,30]
[339902598,1728147129477,-500.0,0.00040821,30]
[339902599,1728147129486,-500.0,0.00040821,30]
[339902600,1728147129496,-1465.78,0.00040821,30]
[339902601,1728147129505,-500.0,0.00040821,30]
[339902602,1728147129515,-1472.61,0.00040821,30]
[339902603,1728147129524,-500.0,0.00040821,30]
[339902604,1728147129534,-848.55,0.00040821,30]
[339902605,1728147129543,-500.0,0.00040821,30]
[339902606,1728147129552,-500.0,0.00040821,30]
[339902607,1728147129562,-779.41,0.00040821,30]
[339902608,1728147129571,-500.0,0.00040821,30]
[339902609,1728147129580,-500.0,0.00040821,30]
[339902610,1728147129589,-500.0,0.00040821,30]
[339902611,1728147129599,-777.28,0.00040821,30]
[339902612,1728147129608,-500.0,0.00040821,30]
[339902613,1728147129618,-1683.21,0.00040821,30]
[339902614,1728147129627,-500.0,0.00040821,30]
[339902615,1728147129636,-443.64229959,0.00040821,30]
[339902616,1728147129647,-1078.6,0.00040821,30]
[339902617,1728147129657,-1725.49,0.00040821,30]
[339902618,1728147129667,-205.19349372,0.00040821,30]
[339902619,1728147129677,-587.6,0.00040821,30]
[339902620,1728147129687,-659.83,0.00040821,30]
[339902621,1728147129697,-600.74,0.00040821,30]
[339902622,1728147129706,-500.0,0.00040821,30]
[339902623,1728147129716,-381.73027947,0.00040821,30]
[339902624,1728147129725,-706.43,0.00040821,30]
[339902625,1728147129734,-1054.81,0.00040821,30]
[339902626,1728147129744,-500.0,0.00040821,30]
[339902627,1728147129753,-500.0,0.00040821,30]
[339902628,1728147129763,-500.0,0.00040821,30]
[339902629,1728147129771,-1280.81,0.00040821,30]
[339902630,1728147129780,-500.0,0.00040821,30]
[339902631,1728147129790,-1363.15,0.00040821,30]
[339902632,1728147129800,-500.0,0.00040821,30]
[339902633,1728147129809,-500.0,0.00040821,30]
[339902634,1728147129819,-554.72099759,0.00040821,30]
[339902635,1728147129828,-500.0,0.00040821,30]
[339902636,1728147129838,-500.0,0.00040821,30]
[339902637,1728147129847,-905.57,0.00040821,30]
[339902638,1728147129857,-500.0,0.00040821,30]
[339902639,1728147129868,-1235.27,0.00040821,30]
[339902640,1728147129878,-1284.12,0.00040821,30]
[339902641,1728147129888,-501.17532449,0.00040821,30]
[339902642,1728147129898,-637.05,0.00040821,30]
[339902643,1728147129908,-500.0,0.00040821,30]
[339902644,1728147129918,-500.0,0.00040821,30]
[339902645,1728147129927,-503.7446544,0.00040821,30]
[339902646,1728147129937,-500.0,0.00040821,30]
[339902647,1728147129946,-1285.68,0.00040821,30]
[339902648,1728147129956,-503.25,0.00040821,30]
[339902649,1728147129965,-500.0,0.00040821,30]
[339902650,1728147129974,-500.0,0.00040821,30]
[339902651,1728147129984,-500.0,0.00040821,30]
[339902652,1728147129993,-500.0,0.00040821,30]
[339902653,1728147130003,-938.91,0.00040821,30]
[339902654,1728147130013,-500.0,0.00040821,30]
[339902655,1728147130023,-505.73353396,0.00040821,30]
[339902656,1728147130032,-1214.24,0.00040821,30]
[339902657,1728147130043,-500.0,0.00040821,30]
[339902658,1728147130053,-669.13,0.00040821,30]
[339902659,1728147130062,-950.76,0.00040821,30]
[339902660,1728147130071,-500.0,0.00040821,30]
[339902661,1728147130080,-1555.77,0.00040821,30]
[339902662,1728147130089,-1046.87,0.00040821,30]
[339902663,1728147130099,-500.0,0.00040821,30]
[339902664,1728147130108,-1000.0,0.00040821,30]
[339902665,1728147130117,-766.5,0.00040821,30]
[339902666,1728147130126,-1076.33,0.00040821,30]
[339902667,1728147130135,-500.0,0.00040821,30]
[339902668,1728147130146,-500.0,0.00040821,30]
[339902669,1728147130156,-500.0,0.00040821,30]
[339902670,1728147130165,-773.6,0.00040821,30]
[339902671,1728147130175,-500.0,0.00040821,30]
[339902672,1728147130185,-956.46,0.00040821,30]
[339902673,1728147130195,-500.0,0.00040821,30]
[339902674,1728147130205,-500.0,0.00040821,30]
[339902675,1728147130215,-500.0,0.00040821,30]
[339902676,1728147130225,-500.0,0.00040821,30]
[339902677,1728147130235,-500.0,0.00040821,30]
[339902678,1728147130245,-570.66056038,0.00040821,30]
[339902679,1728147130255,-1442.35,0.00040821,30]
[339902680,1728147130265,-1211.84,0.00040821,30]
[339902681,1728147130274,-500.0,0.00040821,30]
[339902682,1728147130284,-658.69,0.00040821,30]
[339902683,1728147130293,-1361.72,0.00040821,24]
[339902684,1728147130302,-500.0,0.00040821,30]
[339902685,1728147130312,-1120.5,0.00040821,30]
[339902686,1728147130321,-500.0,0.00040821,30]
[339902687,1728147130331,-500.0,0.00040821,30]
[339902688,1728147130340,-505.40105773,0.00040821,30]
[339902689,1728147130352,-500.0,0.00040821,30]
[339902690,1728147130362,-1128.3,0.00040821,30]
[339902691,1728147130371,-500.0,0.00040821,30]
[339902692,1728147130380,-503.70643406,0.00040821,30]
[339902693,1728147130389,-500.0,0.00040821,30]
[339902694,1728147130399,-500.0,0.00040821,30]
[339902695,1728147130408,-627.25,0.00040821,30]
[339902696,1728147130418,-500.0,0.00040821,30]
[339902697,1728147130427,-723.77,0.00040821,30]
[339902698,1728147130436,-500.0,0.00040821,30]
[339902699,1728147130445,-1143.9,0.00040821,30]
[339902700,1728147130453,-502.75,0.00040821,30]
[339902701,1728147130462,-500.0,0.00040821,30]
[339902702,1728147130471,-1054.07,0.00040821,30]
[339902703,1728147130481,-1458.38,0.00040821,30]
[339902704,1728147130489,-505.65035826,0.00040821,30]
[339902705,1728147130498,-680.05,0.00040821,30]
[339902706,1728147130508,-2308.66,0.00040821,30]
[339902707,1728147130527,-151.0,0.00040821,14]
[339902708,1728147130668,-526.17,0.00040821,30]
[339902709,1728147130678,-500.0,0.00040821,30]
[339902710,1728147130687,-958.76,0.00040821,30]
[339902711,1728147130697,-500.0,0.00040821,30]
[339902712,1728147130706,-510.44200063,0.00040821,30]
[339902713,1728147130716,-521.35,0.00040821,30]
[339902714,1728147130725,-772.75,0.00040821,30]
[339902715,1728147130735,-668.383726,0.00040821,14]
[339902716,1728147130745,-957.22,0.00040821,30]
[339902717,1728147130755,-450.36516774,0.00040821,30]
[339902718,1728147130765,-668.383722,0.00040821,14]
[339902719,1728147130774,-1182.56,0.00040821,30]
[339902720,1728147130784,-500.0,0.00040821,30]
[339902721,1728147130793,-658.49,0.00040821,30]
[339902722,1728147130803,-500.0,0.00040821,30]
[339902723,1728147130812,-500.0,0.00040821,30]
[339902724,1728147130822,-500.0,0.00040821,30]
[339902725,1728147130831,-500.0,0.00040821,30]
[339902726,1728147130840,-764.47,0.00040821,30]
[339902727,1728147130850,-500.0,0.00040821,30]
[339902728,1728147130859,-500.0,0.00040821,30]
[339902729,1728147130869,-500.0,0.00040821,30]
[339902730,1728147130878,-500.0,0.00040821,30]
[339902731,1728147130888,-1230.05,0.00040821,30]
[339902732,1728147130897,-191.22853452,0.00040821,30]
[339902733,1728147130906,-500.0,0.00040821,30]
[339902734,1728147130916,-500.0,0.00040821,30]
[339902735,1728147130925,-872.43,0.00040821,30]
[339902736,1728147130935,-500.0,0.00040821,30]
[339902737,1728147130945,-500.0,0.00040821,30]
[339902738,1728147130954,-258.3,0.00040821,30]
[339902739,1728147130963,-611.65,0.00040821,30]
[339902740,1728147130972,-500.0,0.00040821,30]
[339902741,1728147130982,-842.7,0.00040821,30]
[339902742,1728147130991,-500.0,0.00040821,30]
[339902743,1728147130999,-500.0,0.00040821,30]
[339902744,1728147131009,-500.0,0.00040821,30]
[339902745,1728147131018,-821.45,0.00040821,30]
[339902746,1728147131027,-1020.54,0.00040821,30]
[339902747,1728147131036,-500.0,0.00040821,30]
[339902748,1728147131046,-500.0,0.00040821,30]
[339902749,1728147131056,-508.95,0.00040821,30]
[339902750,1728147131065,-500.0,0.00040821,30]
[339902751,1728147131074,-500.0,0.00040821,30]
[339902752,1728147131083,-500.0,0.00040821,30]
[339902753,1728147131092,-500.0,0.00040821,30]